bitfinex/quotes_SOLUSD_20220130
["timestamp","ask_amount","ask_price","bid_price","bid_amount"]
[1643563286287,0.25,94.719,94.681,0.25]
[1643563286886,15.843,94.72,94.681,0.25]
[1643563289790,15.842,94.73,94.681,0.25]
[1643563290190,15.842,94.73,94.69,6.0]
[1643563290388,15.842,94.73,94.691,0.25]
[1643563290994,46.4433222,94.729,94.691,0.25]
[1643563291992,15.842,94.73,94.691,0.25]
[1643563294396,15.842,94.73,94.7,6.0]
[1643563294594,15.842,94.73,94.691,0.25]
[1643563295795,15.842,94.73,94.69,15.841]
[1643563297195,15.842,94.73,94.691,0.25]
[1643563302020,15.842,94.73,94.68,15.842]
[1643563302221,15.842,94.73,94.681,0.25]
[1643563303621,105.5,94.747,94.681,0.25]
[1643563303622,23.0633,94.748,94.69,15.84]
[1643563303822,15.839,94.75,94.691,0.25]
[1643563304024,15.839,94.75,94.692,6.0]
[1643563304422,15.839,94.75,94.693,0.25]
[1643563305023,15.839,94.75,94.7,15.838]
[1643563305425,15.838,94.76,94.701,0.25]
[1643563305623,54.2487159,94.79,94.701,0.25]
[1643563305825,23.0558,94.789,94.701,0.25]
[1643563306025,6.0,94.78,94.703,6.0]
[1643563306225,6.0,94.78,94.71,15.837]
[1643563306528,23.0558,94.789,94.72,6.0]
[1643563306725,0.0006566,94.721,94.72,6.0]
[1643563306925,0.0006566,94.721,94.72,6.25]
[1643563312632,0.0006566,94.721,94.72,6.0]
[1643563314233,0.0006566,94.721,94.72,6.25]
[1643563318136,0.0006566,94.721,94.72,0.25]
[1643563318338,0.0006566,94.721,94.711,0.25]
[1643563321941,0.0006566,94.721,94.703,6.0]
[1643563322341,0.0006566,94.721,94.704,0.25]
[1643563325246,0.0006566,94.721,94.68,15.07]
[1643563325448,0.0006566,94.721,94.673,2.44242666]
[1643563325646,0.0006566,94.721,94.688,6.0]
[1643563325846,0.0006566,94.721,94.689,0.25]
[1643563326047,0.0006566,94.721,94.69,6.0]
[1643563326448,0.0006566,94.721,94.7,15.838]
[1643563326848,0.0006566,94.721,94.701,0.25]
[1643563327251,0.0006566,94.721,94.701,6.25]
[1643563327448,0.0006566,94.721,94.71,15.837]
[1643563327648,0.0006566,94.721,94.711,0.25]
[1643563335054,0.0006566,94.721,94.71,6.0]
[1643563335253,0.0006566,94.721,94.711,0.25]
[1643563336553,0.0006566,94.721,94.703,0.25]
[1643563337153,0.0006566,94.721,94.71,15.837]
[1643563337354,0.0006566,94.721,94.711,0.25]
[1643563338155,0.0006566,94.721,94.711,9.39]
[1643563338555,0.0006566,94.721,94.711,15.39]
[1643563342859,0.0006566,94.721,94.711,9.39]
[1643563343058,0.0006566,94.721,94.711,0.25]
[1643563343258,6.06439994,94.72,94.711,0.25]
[1643563343458,0.0006566,94.721,94.711,0.25]
[1643563345563,0.0006566,94.721,94.701,0.25]
[1643563346361,0.0006566,94.721,94.691,0.25]
[1643563346560,0.0006566,94.721,94.7,6.0]
[1643563346961,0.0006566,94.721,94.701,0.25]
[1643563348786,0.5413132,94.721,94.701,0.25]
[1643563350692,0.5413132,94.721,94.7,6.0]
[1643563350890,0.5413132,94.721,94.7,21.839]
[1643563351189,0.5413132,94.721,94.7,15.839]
[1643563351588,0.5413132,94.721,94.711,0.77018625]
[1643563352192,6.06439994,94.72,94.711,0.77018625]
[1643563353293,0.5413132,94.721,94.711,0.77018625]
[1643563353791,0.5413132,94.721,94.711,1.02018625]
[1643563353991,22.827,94.769,94.711,1.02018625]
[1643563354390,22.827,94.769,94.72,15.836]
[1643563354792,22.827,94.769,94.721,0.25]
[1643563355795,15.837,94.76,94.721,0.25]
[1643563355993,0.25,94.768,94.711,0.77018625]
[1643563356194,0.25,94.768,94.711,1.02018625]
[1643563356395,0.25,94.768,94.712,0.25]
[1643563356594,22.827,94.769,94.712,0.25]
[1643563356997,1.4577159,94.782,94.721,6.0]
[1643563357196,1.4577159,94.794,94.721,6.0]
[1643563357399,1.4577159,94.794,94.73,6.0]
[1643563357595,6.0,94.784,94.731,6.0]
[1643563357796,6.0,94.784,94.732,23.9358]
[1643563357996,1.4577159,94.796,94.74,15.831]
[1643563358197,6.0,94.786,94.74,21.831]
[1643563358399,6.0,94.786,94.742,6.0]
[1643563358597,6.0,94.786,94.741,0.25]
[1643563358897,1.4577159,94.797,94.741,0.25]
[1643563359097,6.0,94.787,94.741,0.25]
[1643563359698,1.4577159,94.801,94.741,0.25]
[1643563359699,5.54190438,94.79,94.75,15.829]
[1643563359898,3.30943629,94.79,94.751,0.25]
[1643563360098,2.86969132,94.833,94.751,0.25]
[1643563360099,1.46705094,94.814,94.753,45.0]
[1643563360302,2.86969132,94.841,94.754,105.75]
[1643563360503,2.86969132,94.841,94.761,6.0]
[1643563360705,0.1,94.858,94.8,15.822]
[1643563360914,3.03331883,94.877,94.801,0.25]
[1643563361107,4.34998347,94.903,94.81,15.07]
[1643563361108,2.86969132,94.894,94.81,15.07]
[1643563361307,17.34160989,94.876,94.811,0.25]
[1643563361505,0.1,94.875,94.82,6.0]
[1643563361705,0.1,94.875,94.83,15.07]
[1643563361902,52.709,94.94,94.83,15.07]
[1643563361903,0.1,94.909,94.831,0.25]
[1643563362103,0.1,94.939,94.84,6.0]
[1643563362302,0.11721728,94.888,94.841,0.25]
[1643563362503,0.11721728,94.888,94.841,8.68631299]
[1643563362703,0.11721728,94.888,94.841,2.68631299]
[1643563362904,0.00886912,94.888,94.852,45.0]
[1643563363107,28.2704231,94.999,94.863,45.0]
[1643563363108,2.91899489,94.99,94.863,45.0]
[1643563363305,0.04179183,95.013,94.88,188.36]
[1643563363507,0.04179183,95.013,94.864,49.1297]
[1643563363508,0.04179183,95.013,94.91,188.36]
[1643563363704,0.04179183,95.013,94.92,15.07]
[1643563363906,0.04179183,95.013,94.921,0.25]
[1643563364108,0.04179183,95.013,94.94,15.797]
[1643563364306,0.04179183,95.013,94.941,0.25]
[1643563364607,0.04179183,95.013,94.95,21.07]
[1643563364905,46.44761908,95.061,94.951,0.25]
[1643563365105,105.5,95.06,94.952,6.0]
[1643563365306,8.70444079,95.096,94.96,15.792]
[1643563365505,8.70444079,95.096,94.97,21.07]
[1643563365705,52.64,95.09,94.97,15.07]
[1643563365907,52.64,95.09,94.98,6.0]
[1643563366111,46.5642,95.095,94.98,6.0]
[1643563366410,46.32821193,95.094,94.99,15.789]
[1643563366605,52.627,95.09,95.0,6.0]
[1643563366805,0.25,95.089,95.001,0.25]
[1643563367205,52.627,95.09,95.001,0.25]
[1643563367206,15.787,95.07,95.001,0.25]
[1643563367407,46.5642,95.095,95.01,15.785]
[1643563367606,113.3,95.232,95.02,21.07]
[1643563367607,15.07,95.14,95.02,21.07]
[1643563367805,72.5897,95.169,95.021,0.25]
[1643563367806,136.0959,95.168,95.021,0.25]
[1643563368005,120.4156,95.168,95.021,0.25]
[1643563368207,43.28863493,95.109,95.021,0.25]
[1643563368908,0.1,95.108,95.0,15.07]
[1643563369110,0.1,95.108,94.964,23.5294]
[1643563369308,15.785,95.07,94.99,15.07]
[1643563369509,0.1,95.069,94.99,15.07]
[1643563369711,0.25,95.107,95.0,6.0]
[1643563369908,0.25,95.107,95.01,15.07]
[1643563370310,0.25,95.107,95.011,0.25]
[1643563370509,42.78594794,95.101,95.011,0.25]
[1643563370709,0.1,95.1,95.011,0.25]
[1643563370909,15.792,95.05,95.011,0.25]
[1643563371113,0.1,95.049,95.011,0.25]
[1643563372311,15.79,95.04,95.01,15.07]
[1643563372512,0.1,95.039,95.01,15.07]
[1643563372715,0.35,95.039,94.934,16.0739]
[1643563372912,0.25,95.039,94.96,15.07]
[1643563373110,0.25,95.039,94.94,0.25]
[1643563373111,0.25,95.039,94.95,15.07]
[1643563373310,0.25,95.039,94.951,0.25]
[1643563373511,15.796,95.03,94.951,0.25]
[1643563373718,33.00008746,95.029,94.951,0.25]
[1643563373911,0.1,95.028,94.951,0.25]
[1643563374311,0.1,95.028,94.95,15.07]
[1643563374512,0.1,95.028,94.91,15.07]
[1643563374713,105.6,95.028,94.91,15.07]
[1643563374913,0.35,95.027,94.92,6.0]
[1643563375113,15.8,95.01,94.92,6.0]
[1643563375313,15.8,95.01,94.9,15.07]
[1643563375314,41.47617226,95.009,94.901,6.0]
[1643563375515,41.47617226,95.009,94.91,6.0]
[1643563375914,41.47617226,95.009,94.911,0.25]
[1643563376116,15.803,94.98,94.911,0.25]
[1643563376317,0.25,94.979,94.911,0.25]
[1643563376515,33.8321767,94.979,94.911,0.25]
[1643563377316,15.804,94.96,94.911,0.25]
[1643563378518,52.682,94.98,94.911,0.25]
[1643563378519,15.802,94.98,94.911,0.25]
[1643563378719,40.4312437,94.981,94.911,0.25]
[1643563378922,0.25,94.98,94.911,0.25]
[1643563379419,40.4312437,94.981,94.911,0.25]
[1643563379719,15.802,94.97,94.911,0.25]
[1643563379921,15.802,94.97,94.87,15.07]
[1643563380122,0.25,94.969,94.87,15.07]
[1643563380521,0.25,94.969,94.88,6.0]
[1643563380921,15.81,94.94,94.871,2.4393064]
[1643563381348,15.81,94.94,94.872,0.25]
[1643563381747,15.81,94.94,94.873,2.4393064]
[1643563382147,15.81,94.94,94.88,15.807]
[1643563382348,15.81,94.94,94.881,0.25]
[1643563382547,15.81,94.94,94.881,2.6893064]
[1643563382947,15.81,94.94,94.882,2.4393064]
[1643563383349,15.81,94.94,94.883,0.25]
[1643563383551,15.81,94.94,94.892,6.0]
[1643563383750,15.805,94.95,94.892,6.0]
[1643563383950,15.805,94.95,94.893,0.25]
[1643563384153,15.805,94.95,94.894,6.0]
[1643563384350,45.8463,94.98,94.9,6.0]
[1643563384551,105.5,95.001,94.901,6.0]
[1643563384751,15.8,94.98,94.92,15.8]
[1643563384950,15.8,94.98,94.92,30.87]
[1643563385253,43.6671015,94.979,94.92,15.07]
[1643563385452,43.6671015,94.979,94.9,15.07]
[1643563385653,105.5,94.999,94.9,15.07]
[1643563385852,52.676,94.99,94.901,2.4393064]
[1643563386255,52.676,94.99,94.911,6.0]
[1643563386659,52.676,94.99,94.912,0.25]
[1643563386955,36.62573054,94.989,94.912,0.25]
[1643563387159,60.83416859,94.97,94.912,0.25]
[1643563387557,15.803,94.97,94.912,0.25]
[1643563388559,15.803,94.97,94.92,6.0]
[1643563389058,15.8,94.98,94.921,0.25]
[1643563390463,15.799,94.99,94.93,15.799]
[1643563390860,15.799,94.99,94.931,0.25]
[1643563391262,46.56421121,94.989,94.931,0.25]
[1643563391462,15.803,94.98,94.931,0.25]
[1643563391866,15.803,94.98,94.921,0.25]
[1643563393762,15.803,94.98,94.92,15.07]
[1643563395568,15.803,94.98,94.921,0.25]
[1643563395764,15.803,94.98,94.92,15.07]
[1643563396365,0.25,94.979,94.92,15.07]
[1643563396565,15.806,94.97,94.92,15.07]
[1643563396769,105.5,94.968,94.82,23.6111]
[1643563396969,105.5,94.968,94.89,15.07]
[1643563397166,105.5,94.968,94.821,24.167]
[1643563397167,23.8317,94.967,94.862,0.25]
[1643563397367,23.8317,94.967,94.86,15.07]
[1643563398768,23.8317,94.967,94.861,2.43204877]
[1643563398971,15.81,94.95,94.861,2.43204877]
[1643563399167,35.35876027,94.949,94.86,30.881]
[1643563399367,35.60876027,94.949,94.86,30.881]
[1643563399569,35.35876027,94.949,94.86,30.881]
[1643563399769,0.25,94.948,94.86,30.881]
[1643563400167,15.809,94.94,94.861,0.25]
[1643563400368,0.25,94.939,94.861,0.25]
[1643563400668,0.25,94.939,94.86,30.881]
[1643563401271,0.25,94.939,94.86,15.07]
[1643563401272,15.81,94.93,94.86,15.07]
[1643563401468,33.67330835,94.929,94.86,15.07]
[1643563401667,33.92330835,94.929,94.86,15.07]
[1643563401867,33.1531221,94.929,94.861,0.25]
[1643563402270,15.815,94.91,94.861,0.25]
[1643563402468,15.815,94.91,94.84,15.07]
[1643563402669,15.07,94.97,94.84,15.07]
[1643563402869,0.25,94.966,94.862,2.43204877]
[1643563403069,0.25,94.966,94.872,6.0]
[1643563403270,15.808,94.94,94.88,15.808]
[1643563403571,15.808,94.94,94.881,0.25]
[1643563403771,49.16358609,95.168,94.881,2.68204877]
[1643563403772,0.2,95.167,94.881,2.68204877]
[1643563403972,15.07,95.01,94.882,2.43204877]
[1643563404170,47.6151,95.009,94.891,6.0]
[1643563404369,47.6151,95.009,94.9,15.07]
[1643563404370,15.799,95.0,94.9,15.07]
[1643563404571,15.799,95.0,94.91,6.0]
[1643563404773,0.25,94.999,94.911,0.25]
[1643563405370,15.801,94.99,94.911,6.25]
[1643563406369,15.801,94.99,94.92,6.0]
[1643563406570,15.801,94.99,94.921,6.0]
[1643563406773,15.801,94.99,94.921,6.25]
[1643563407404,15.801,94.99,94.921,0.25]
[1643563409575,15.801,94.99,94.93,15.8]
[1643563409773,15.801,94.99,94.931,0.25]
[1643563409976,15.799,95.0,94.931,0.25]
[1643563410175,15.799,95.0,94.94,6.0]
[1643563410373,15.799,95.0,94.941,0.25]
[1643563410573,78.286,95.073,94.94,6.0]
[1643563410574,52.662,95.03,94.94,6.0]
[1643563410773,52.662,95.03,94.941,0.25]
[1643563410774,0.1,95.029,94.941,0.25]
[1643563410974,0.1,95.029,94.941,12.83]
[1643563411178,15.796,95.02,94.941,12.83]
[1643563411578,45.38051268,95.019,94.941,12.83]
[1643563411774,45.38051268,95.019,94.941,0.25]
[1643563412375,15.798,95.0,94.941,0.25]
[1643563412577,45.38051268,95.019,94.941,0.25]
[1643563412775,41.35514509,95.004,94.941,0.25]
[1643563413378,15.796,95.01,94.941,0.25]
[1643563415005,15.796,95.01,94.95,15.796]
[1643563415205,15.796,95.01,94.95,30.866]
[1643563415403,15.796,95.01,94.951,0.25]
[1643563416805,15.795,95.02,94.951,0.25]
[1643563417006,15.795,95.02,94.96,6.0]
[1643563417205,15.795,95.02,94.97,15.07]
[1643563417405,15.795,95.02,94.971,0.25]
[1643563417808,42.51995454,95.019,94.971,0.25]
[1643563418005,42.51995454,95.019,94.97,15.07]
[1643563418206,0.25,95.018,94.97,15.07]
[1643563418406,15.796,95.01,94.97,15.07]
[1643563418607,42.51995454,95.019,94.97,15.07]
[1643563418806,42.51995454,95.019,94.971,0.25]
[1643563419006,0.1,95.024,94.971,0.25]
[1643563419209,0.1,95.032,94.971,0.25]
[1643563419409,15.793,95.03,94.97,15.07]
[1643563419607,0.1,95.029,94.971,0.25]
[1643563419808,0.1,95.032,94.971,0.25]
[1643563420007,0.1,95.045,94.971,0.25]
[1643563420810,0.1,95.045,94.98,15.791]
[1643563421008,0.1,95.045,94.99,6.0]
[1643563421212,0.1,95.049,95.0,15.07]
[1643563421411,0.1,95.068,95.0,15.07]
[1643563421608,0.1,95.068,95.001,0.25]
[1643563421808,15.788,95.06,95.001,0.25]
[1643563422010,0.1,95.059,95.001,0.25]
[1643563422209,0.1,95.068,95.001,0.25]
[1643563424513,0.1,95.068,95.01,15.786]
[1643563424715,0.1,95.071,95.02,15.07]
[1643563425014,0.35,95.071,95.02,15.07]
[1643563425214,0.25,95.071,95.02,15.07]
[1643563425413,105.5,95.095,95.02,15.07]
[1643563425617,36.08638733,95.069,95.02,15.07]
[1643563425814,105.85,95.068,95.02,15.07]
[1643563426019,105.85,95.068,94.97,188.36]
[1643563426020,0.1,95.067,95.0,15.07]
[1643563426215,105.5,95.066,95.0,15.07]
[1643563426414,0.35,95.065,95.0,15.07]
[1643563426813,15.791,95.06,95.0,15.07]
[1643563427014,0.1,95.059,95.0,15.07]
[1643563427314,0.1,95.059,95.001,0.25]
[1643563427517,0.25,95.065,95.001,0.25]
[1643563427717,0.35,95.065,95.001,0.25]
[1643563427917,0.35,95.065,95.0,15.07]
[1643563428121,37.81778418,95.049,95.0,15.07]
[1643563428318,105.6,95.048,94.98,15.07]
[1643563428518,0.1,95.047,94.98,15.07]
[1643563429124,15.794,95.03,94.98,15.07]
[1643563429322,0.1,95.029,94.98,15.07]
[1643563429520,0.1,95.029,94.981,0.25]
[1643563430725,0.1,95.029,94.98,15.07]
[1643563430924,0.1,95.033,94.98,15.07]
[1643563431127,0.1,95.033,94.981,0.25]
[1643563431326,0.1,95.033,94.98,15.07]
[1643563431724,0.1,95.033,94.981,0.25]
[1643563432325,46.49238401,95.028,94.95,15.796]
[1643563432524,46.49238401,95.028,94.94,188.36]
[1643563432525,105.6,95.027,94.96,15.07]
[1643563432727,0.1,95.026,94.96,15.07]
[1643563432928,0.1,95.026,94.961,0.25]
[1643563433327,0.1,95.026,94.96,15.07]
[1643563433726,15.797,95.02,94.96,15.07]
[1643563433926,15.797,95.02,94.97,6.0]
[1643563434126,0.1,95.024,94.98,15.07]
[1643563434328,0.35,95.04,94.98,15.07]
[1643563434526,0.1,95.04,94.98,15.07]
[1643563434928,15.794,95.03,94.981,0.25]
[1643563435130,0.1,95.029,94.981,0.25]
[1643563436530,0.1,95.029,94.99,6.0]
[1643563436735,0.1,95.039,95.0,15.07]
[1643563436932,23.7303,95.069,95.0,15.07]
[1643563436933,0.1,95.066,95.0,15.07]
[1643563437131,0.1,95.066,95.001,0.25]
[1643563437529,40.36044469,95.066,95.001,0.25]
[1643563437729,105.6,95.065,95.001,0.25]
[1643563437932,0.1,95.064,95.001,0.25]
[1643563438138,45.78103321,95.049,95.001,0.25]
[1643563438331,0.1,95.048,95.001,0.25]
[1643563438534,0.1,95.049,95.001,0.25]
[1643563438933,0.1,95.066,95.01,6.0]
[1643563439133,15.788,95.06,95.01,6.0]
[1643563439433,0.1,95.059,95.01,6.0]
[1643563439631,0.1,95.059,95.011,0.25]
[1643563439832,0.1,95.059,95.02,15.07]
[1643563440032,0.1,95.066,95.02,15.07]
[1643563440239,0.35,95.068,95.02,15.07]
[1643563440434,33.12019758,95.068,95.02,15.07]
[1643563440635,33.12019758,95.068,94.96,52.631]
[1643563440636,0.1,95.067,95.0,15.07]
[1643563440935,47.2108,95.067,95.0,15.07]
[1643563441169,0.1,95.066,95.0,15.07]
[1643563441338,105.6,95.066,95.0,15.07]
[1643563441538,15.788,95.06,95.0,15.07]
[1643563441837,0.35,95.059,95.0,15.07]
[1643563442036,105.75,95.059,95.0,15.07]
[1643563442235,0.1,95.058,95.0,15.07]
[1643563442637,0.1,95.066,95.001,0.25]
[1643563442837,0.1,95.095,95.001,10.18]
[1643563443037,0.1,95.095,95.011,6.0]
[1643563443236,0.1,95.095,95.02,15.07]
[1643563443436,33.80379342,95.094,95.012,0.25]
[1643563443639,15.786,95.08,95.02,15.07]
[1643563443837,0.1,95.079,95.021,0.25]
[1643563444244,39.06548539,95.079,95.021,0.25]
[1643563444437,0.35,95.078,95.02,15.07]
[1643563444639,15.787,95.07,95.02,15.07]
[1643563444837,48.2965,95.096,95.02,15.07]
[1643563444838,0.1,95.069,95.021,0.25]
[1643563445039,0.1,95.095,95.021,0.25]
[1643563445238,0.35,95.095,95.021,0.25]
[1643563445439,0.35,95.095,95.02,15.07]
[1643563445837,105.5,95.093,95.02,15.07]
[1643563446039,0.1,95.092,95.02,15.07]
[1643563446341,0.35,95.092,95.02,15.07]
[1643563446540,15.787,95.07,95.02,15.07]
[1643563446838,0.1,95.069,95.02,15.07]
[1643563447239,0.1,95.069,95.021,0.25]
[1643563447439,0.1,95.088,95.021,0.25]
[1643563447639,0.35,95.088,95.021,0.25]
[1643563448043,38.20357832,95.087,95.021,0.25]
[1643563448242,0.1,95.086,95.021,0.25]
[1643563448443,0.35,95.086,95.021,0.25]
[1643563448674,15.785,95.08,95.021,0.25]
[1643563448883,0.1,95.079,95.021,0.25]
[1643563451774,0.35,95.089,95.021,0.25]
[1643563452274,0.35,95.089,95.03,15.783]
[1643563452674,0.35,95.089,95.031,0.25]
[1643563453776,0.1,95.089,95.031,0.25]
[1643563454276,0.1,95.099,95.031,0.25]
[1643563455278,0.1,95.099,95.04,15.781]
[1643563455479,0.1,95.099,95.04,30.851]
[1643563455678,0.1,95.099,95.041,0.25]
[1643563456078,0.1,95.099,95.04,15.07]
[1643563456679,0.1,95.099,95.041,0.25]
[1643563456879,15.784,95.09,95.04,15.07]
[1643563457080,0.1,95.089,95.04,15.07]
[1643563457880,0.1,95.089,95.041,0.25]
[1643563458079,0.1,95.099,95.041,0.25]
[1643563458280,0.25,95.099,95.041,0.25]
[1643563458479,32.90067012,95.098,95.041,0.25]
[1643563458680,0.1,95.097,95.041,0.25]
[1643563458880,15.785,95.09,95.041,0.25]
[1643563459083,0.1,95.089,95.041,0.25]
[1643563460083,0.1,95.089,95.04,15.07]
[1643563460381,0.1,95.089,95.041,0.25]
[1643563461381,0.1,95.097,95.041,0.25]
[1643563462882,0.1,95.099,95.041,0.25]
[1643563464587,39.6453,95.11,95.05,21.78]
[1643563464588,0.1,95.109,95.05,21.78]
[1643563464788,0.1,95.109,95.051,0.25]
[1643563465988,43.25398438,95.108,95.051,0.25]
[1643563466189,0.1,95.107,95.051,0.25]
[1643563466993,0.1,95.109,95.051,0.25]
[1643563467593,15.782,95.1,95.05,15.07]
[1643563467792,40.78753331,95.099,95.05,15.07]
[1643563467993,40.88753331,95.099,95.05,15.07]
[1643563468195,0.1,95.098,95.05,15.07]
[1643563468493,15.785,95.09,95.05,15.07]
[1643563468694,0.1,95.089,95.05,15.07]
[1643563470196,105.6,95.089,95.05,15.07]
[1643563470397,105.6,95.089,95.02,15.784]
[1643563470398,33.70456053,95.079,95.02,15.07]
[1643563470599,105.6,95.078,95.02,15.07]
[1643563470795,0.48739784,95.077,95.009,24.3823]
[1643563470996,0.48739784,95.077,94.982,24.45]
[1643563471200,0.48739784,95.077,94.99,15.07]
[1643563471201,105.5,95.075,94.99,15.07]
[1643563471396,0.35,95.074,94.99,15.07]
[1643563471599,105.5,95.069,94.99,15.07]
[1643563471797,0.35,95.068,94.99,15.07]
[1643563472601,15.791,95.05,94.99,15.07]
[1643563472799,42.84580128,95.049,94.99,15.07]
[1643563473002,0.1,95.048,94.99,15.07]
[1643563473200,0.1,95.048,94.97,15.792]
[1643563473403,23.8532,95.048,94.97,15.792]
[1643563473602,105.6,95.047,94.97,15.792]
[1643563473802,15.793,95.04,94.96,15.07]
[1643563474005,15.793,95.04,94.943,18.24993639]
[1643563474006,0.1,95.039,94.943,18.24993639]
[1643563474205,0.25,95.039,94.94,15.07]
[1643563474405,0.1,95.046,94.94,15.07]
[1643563474606,0.1,95.046,94.917,18.24993639]
[1643563474607,5.9487542,95.046,94.917,16.1232]
[1643563474803,11.40769566,95.045,94.917,16.1232]
[1643563475025,108.52663586,95.044,94.917,16.1232]
[1643563475224,0.1,95.043,94.91,15.07]
[1643563475424,25.1933,95.043,94.929,0.25]
[1643563475623,105.6,95.042,94.929,0.25]
[1643563475823,0.35,95.041,94.929,0.25]
[1643563476024,15.796,95.02,94.921,6.0]
[1643563476329,33.76057788,95.018,94.922,0.25]
[1643563476728,0.25,95.017,94.922,0.25]
[1643563476929,105.75,95.017,94.922,0.25]
[1643563477130,105.5,95.017,94.922,0.25]
[1643563477724,35.86868455,94.989,94.92,30.871]
[1643563478726,0.25,94.988,94.92,30.871]
[1643563479132,15.802,94.98,94.921,0.25]
[1643563485134,15.799,94.99,94.93,15.8]
[1643563485335,15.799,94.99,94.931,0.25]
[1643563486034,43.82782412,94.989,94.931,0.25]
[1643563486436,43.82782412,94.989,94.92,15.801]
[1643563486641,129.7485,95.002,94.921,0.25]
[1643563486837,15.802,94.98,94.921,0.25]
[1643563492445,105.5,94.979,94.921,0.25]
[1643563492649,15.804,94.97,94.921,0.25]
[1643563492847,36.18474414,94.969,94.921,0.25]
[1643563493446,52.679,94.98,94.921,0.25]
[1643563493672,15.799,95.0,94.922,2.41854044]
[1643563493850,15.799,95.0,94.93,6.0]
[1643563494047,15.799,95.0,94.94,15.07]
[1643563494448,34.07193188,94.999,94.941,0.25]
[1643563495048,15.8,94.99,94.941,0.25]
[1643563496450,34.07193188,94.999,94.941,0.25]
[1643563497853,15.8,94.99,94.94,15.07]
[1643563499451,15.8,94.99,94.941,0.25]
[1643563499852,15.8,94.99,94.94,15.07]
[1643563500456,34.07193188,94.999,94.94,30.868]
[1643563501056,34.07193188,94.999,94.94,15.07]
[1643563501276,34.07193188,94.999,94.941,0.25]
[1643563501981,15.8,94.99,94.941,0.25]
[1643563502778,34.07193188,94.999,94.941,0.25]
[1643563506381,15.8,94.99,94.941,0.25]
[1643563506783,15.8,94.99,94.94,15.07]
[1643563507584,15.8,94.99,94.924,1.45538894]
[1643563507784,15.804,94.97,94.916,1.45538894]
[1643563507984,105.5,94.968,94.905,1.45538894]
[1643563508186,105.5,94.968,94.903,1.45538894]
[1643563508383,0.25,94.967,94.903,1.45538894]
[1643563508984,0.25,94.967,94.901,1.45538894]